bitfinex/quotes_SOLUSD_20230120
["timestamp","ask_amount","ask_price","bid_price","bid_amount"]
[1674173986684,10.0,21.18,21.174,6.69497028]
[1674173986877,10.0,21.18,21.175,24.88132682]
[1674173987094,10.0,21.18,21.175,32.29797186]
[1674173987415,10.0,21.18,21.176,7.41664504]
[1674173987608,10.0,21.18,21.177,17.96]
[1674173987822,10.0,21.18,21.166,5.81692303]
[1674173988034,35.42,21.179,21.174,7.41664504]
[1674173988249,10.0,21.179,21.168,68.17176496]
[1674173988466,35.42,21.178,21.168,68.17176496]
[1674173988785,10.0,21.177,21.168,68.17176496]
[1674173989187,10.0,21.177,21.168,75.58841]
[1674173989407,35.41,21.181,21.169,6.74573353]
[1674173989615,10.0,21.182,21.17,20.0]
[1674173989820,10.0,21.182,21.171,8.03478287]
[1674173990036,10.0,21.182,21.172,17.96]
[1674173990358,10.0,21.182,21.174,6.58723852]
[1674173990568,10.0,21.182,21.175,18.92]
[1674173990756,10.0,21.182,21.175,25.50824297]
[1674173990972,10.0,21.182,21.176,7.29307941]
[1674173991194,10.0,21.182,21.176,13.88132238]
[1674173991520,10.0,21.182,21.177,0.00824297]
[1674173991710,10.0,21.182,21.177,13.16824297]
[1674173992039,10.0,21.182,21.176,7.29307941]
[1674173992040,10.0,21.182,21.178,0.00824297]
[1674173992451,10.0,21.182,21.175,85.17176496]
[1674173992777,10.0,21.182,21.176,13.17648594]
[1674173992960,10.0,21.182,21.176,6.58824297]
[1674173993176,10.0,21.182,21.176,14.03760962]
[1674173993387,10.0,21.182,21.177,17.0]
[1674173993598,10.0,21.182,21.178,1.92]
[1674173994017,10.0,21.182,21.177,0.0047372]
[1674173994456,10.0,21.182,21.155,6.28179785]
[1674173994666,35.41,21.181,21.162,5.4847372]
[1674173994874,35.41,21.181,21.161,4.57847976]
[1674173995074,10.0,21.18,21.164,6.00425487]
[1674173995494,35.42,21.179,21.165,88.21682936]
[1674173995914,10.0,21.182,21.167,6.66560727]
[1674173996231,10.0,21.182,21.168,67.60415841]
[1674173996443,10.0,21.182,21.169,6.88325192]
[1674173996649,10.0,21.182,21.17,7.8449769]
[1674173996860,10.0,21.182,21.171,17.96]
[1674173997077,10.0,21.182,21.172,0.96]
[1674173997390,10.0,21.182,21.172,4.87206625]
[1674173997580,10.0,21.182,21.172,0.00206625]
[1674173997797,35.41,21.181,21.172,0.00206625]
[1674173998007,10.0,21.18,21.172,0.00206625]
[1674173998233,10.0,21.18,21.173,4.87206625]
[1674173998450,35.42,21.179,21.169,62.73209216]
[1674173998639,35.42,21.179,21.165,61.09271147]
[1674173998640,10.0,21.178,21.17,4.87206625]
[1674173998853,10.0,21.178,21.17,9.19988293]
[1674173999060,10.0,21.178,21.17,4.32781668]
[1674173999703,10.0,21.178,21.171,0.96]
[1674174000131,35.42,21.177,21.166,10.76155825]
[1674174000448,10.0,21.176,21.166,10.76155825]
[1674174001077,10.0,21.176,21.167,5.78113748]
[1674174001594,10.0,21.176,21.169,7.73263359]
[1674174001811,10.0,21.178,21.17,18.92]
[1674174002005,10.0,21.178,21.171,7.48574555]
[1674174002217,10.0,21.178,21.172,18.92]
[1674174002428,10.0,21.178,21.172,23.24781668]
[1674174002635,10.0,21.182,21.173,4.47516806]
[1674174002857,10.0,21.182,21.174,6.13997468]
[1674174003070,10.0,21.182,21.176,7.44840768]
[1674174003260,10.0,21.182,21.177,38.92]
[1674174003471,10.0,21.182,21.178,5.49274823]
[1674174003678,10.0,21.182,21.179,0.96]
[1674174003889,10.0,21.182,21.18,0.96]
[1674174004100,10.0,21.182,21.179,5.28781668]
[1674174005148,10.0,21.182,21.179,0.00781668]
[1674174005362,10.0,21.182,21.177,20.0]
[1674174005674,10.0,21.182,21.175,4.32781668]
[1674174006522,10.0,21.182,21.176,17.96]
[1674174006732,10.0,21.182,21.177,20.0]
[1674174006948,10.0,21.182,21.178,17.96]
[1674174007158,10.0,21.184,21.178,17.96]
[1674174007379,10.0,21.184,21.179,8.23235901]
[1674174007706,10.0,21.184,21.18,17.96]
[1674174007909,10.0,21.184,21.181,0.96]
[1674174008114,10.0,21.184,21.182,0.96]
[1674174008315,10.0,21.184,21.18,17.0]
[1674174008963,10.0,21.184,21.179,0.00781668]
[1674174009168,10.0,21.184,21.177,4.07858509]
[1674174009383,10.0,21.184,21.171,4.60241902]
[1674174009576,10.0,21.184,21.17,4.81680678]
[1674174009788,10.0,21.184,21.172,7.26048103]
[1674174010108,10.0,21.184,21.173,24.08640177]
[1674174010318,10.0,21.184,21.174,4.54067228]
[1674174010525,10.0,21.184,21.174,8.62707405]
[1674174010744,10.0,21.184,21.175,24.08640177]
[1674174010968,10.0,21.184,21.176,6.073017]
[1674174011267,10.0,21.184,21.177,20.0]
[1674174011486,10.0,21.184,21.178,7.00878477]
[1674174011671,10.0,21.184,21.179,0.96]
[1674174011882,10.0,21.184,21.18,0.96]
[1674174012093,10.0,21.184,21.181,0.96]
[1674174012314,10.0,21.184,21.182,0.96]
[1674174012528,10.0,21.184,21.183,0.96]
[1674174012730,10.0,21.184,21.183,1.92]
[1674174018520,0.96,21.183,21.162,142.3]
[1674174018732,0.96,21.183,21.169,6.52185235]
[1674174018946,10.0,21.182,21.158,10.0]
[1674174019168,10.0,21.182,21.172,3.84498687]
[1674174020643,10.0,21.182,21.173,1.92]
[1674174020855,10.0,21.182,21.173,0.96]
[1674174021467,117.8446,21.183,21.173,0.96]
[1674174021683,116.8846,21.183,21.174,3.84498687]
[1674174021904,116.8846,21.183,21.175,0.96]
[1674174022104,116.8846,21.183,21.176,0.96]
[1674174022316,116.8846,21.183,21.177,4.37722939]
[1674174022535,116.8846,21.183,21.178,18.92]
[1674174022749,116.8846,21.183,21.178,22.76498687]
[1674174023152,10.0,21.184,21.178,22.76498687]
[1674174023362,10.0,21.184,21.179,3.84498687]
[1674174023583,10.0,21.184,21.18,1.92]
[1674174023889,10.0,21.184,21.18,18.92]
[1674174024300,10.0,21.184,21.172,4.50280565]
[1674174024516,9.5,21.184,21.173,11.70197429]
[1674174024726,9.5,21.184,21.174,20.0]
[1674174024948,9.5,21.184,21.175,5.49593777]
[1674174025153,9.5,21.184,21.176,20.0]
[1674174025674,9.5,21.184,21.17,3.84498687]
[1674174026738,9.5,21.184,21.171,0.96]
[1674174026964,9.5,21.184,21.172,0.96]
[1674174027148,9.5,21.184,21.173,0.96]
[1674174027358,9.5,21.184,21.174,6.08326388]
[1674174027579,9.5,21.184,21.175,38.92]
[1674174027800,9.5,21.184,21.175,42.76498687]
[1674174028112,9.5,21.184,21.176,3.84498687]
[1674174028320,9.5,21.184,21.177,1.92]
[1674174028533,44.91,21.184,21.178,0.96]
[1674174028741,44.91,21.184,21.175,1.92]
[1674174028952,44.91,21.184,21.171,23.84498687]
[1674174029387,44.91,21.184,21.165,57.29549216]
[1674174029611,44.91,21.184,21.169,3.84498687]
[1674174029818,44.91,21.184,21.168,20.0]
[1674174030028,44.91,21.184,21.167,5.729801]
[1674174031063,44.91,21.184,21.168,17.96]
[1674174031275,44.91,21.184,21.169,0.96]
[1674174031485,44.91,21.184,21.169,3.84498687]
[1674174031815,44.91,21.184,21.17,4.80498687]
[1674174032221,44.91,21.184,21.171,3.84498687]
[1674174032431,44.91,21.184,21.172,0.96]
[1674174032634,44.91,21.184,21.173,0.96]
[1674174032848,44.91,21.184,21.173,7.68997374]
[1674174033051,44.91,21.184,21.174,0.96]
[1674174033268,44.91,21.184,21.174,4.80498687]
[1674174033473,9.5,21.184,21.175,3.84498687]
[1674174033687,35.41,21.185,21.176,0.96]
[1674174033920,117.5732,21.186,21.176,0.96]
[1674174034108,117.5732,21.186,21.177,10.09445814]
[1674174034324,117.5732,21.186,21.179,6.55150097]
[1674174034537,117.5732,21.186,21.18,17.96]
[1674174034752,10.0,21.185,21.181,0.96]
[1674174034957,10.0,21.185,21.182,0.96]
[1674174035170,10.0,21.185,21.183,0.96]
[1674174035600,10.0,21.185,21.184,0.96]
[1674174035918,10.0,21.185,21.184,1.92]
[1674174036318,35.4,21.188,21.184,5.76498687]
[1674174036526,35.39,21.192,21.185,17.0]
[1674174036748,35.39,21.192,21.186,1.92]
[1674174039686,35.39,21.192,21.18,3.84498687]
[1674174039891,10.0,21.189,21.18,3.84498687]
[1674174040101,10.0,21.189,21.175,20.0]
[1674174040330,10.0,21.187,21.176,3.84498687]
[1674174040535,17.0,21.186,21.168,5.37432584]
[1674174040745,52.4,21.186,21.158,6.20616948]
[1674174040953,52.4,21.186,21.16,38.18372747]
[1674174041151,10.0,21.185,21.161,4.77862328]
[1674174041367,10.0,21.183,21.161,4.77862328]
[1674174041571,17.0,21.182,21.161,4.77862328]
[1674174041800,52.41,21.182,21.161,4.77862328]
[1674174042020,76.16576951,21.182,21.153,6.79681856]
[1674174042218,10.96,21.181,21.153,6.79681856]
[1674174042427,10.96,21.181,21.149,49.68920707]
[1674174042630,52.41,21.18,21.15,7.02765431]
[1674174042957,52.41,21.18,21.151,54.1984817]
[1674174043172,10.0,21.179,21.152,7.66573425]
[1674174043380,10.0,21.179,21.153,5.84046914]
[1674174043569,52.42,21.178,21.153,93.71340368]
[1674174043779,10.0,21.177,21.154,49.68920707]
[1674174043993,10.0,21.177,21.155,6.24148732]
[1674174044216,35.42,21.176,21.156,20.0]
[1674174044430,150.4062,21.176,21.157,23.20283823]
[1674174044660,10.0,21.175,21.157,23.20283823]
[1674174045077,10.0,21.173,21.157,23.20283823]
[1674174045720,35.43,21.172,21.157,23.20283823]
[1674174046034,10.0,21.171,21.157,23.20283823]
[1674174046443,35.43,21.17,21.157,23.20283823]
[1674174046863,10.0,21.169,21.157,23.20283823]
[1674174053074,10.0,21.169,21.154,49.68920707]
[1674174053273,52.43,21.168,21.145,7.09538166]
[1674174053693,0.96,21.167,21.144,49.68920707]
[1674174053902,111.7306,21.167,21.144,49.68920707]
[1674174054118,63.4,21.166,21.133,988.6]
[1674174054331,0.96,21.165,21.134,7.65365402]
[1674174054550,10.96,21.164,21.139,49.68920707]
[1674174054744,22.41414,21.163,21.131,4.11073664]
[1674174054958,22.41414,21.163,21.118,152.95665141]
[1674174054959,0.96,21.162,21.132,49.68920707]
[1674174055283,15.41414,21.161,21.123,3.41526776]
[1674174055489,39.16990951,21.161,21.123,3.41526776]
[1674174055686,97.16576951,21.16,21.123,3.41526776]
[1674174055887,0.96,21.159,21.124,46.74436907]
[1674174056103,15.41414,21.158,21.125,4.18625105]
[1674174056315,42.41414,21.157,21.125,7.60151881]
[1674174056532,5.41414,21.156,21.126,3.41526776]
[1674174056735,22.41414,21.155,21.124,46.74436907]
[1674174056951,10.0,21.153,21.124,46.74436907]
[1674174057161,22.41414,21.152,21.125,20.0]
[1674174057364,5.41414,21.151,21.122,3.41526776]
[1674174057583,10.0,21.149,21.122,3.41526776]
[1674174057790,17.96,21.148,21.122,3.41526776]
[1674174058105,10.96,21.147,21.122,3.41526776]
[1674174058323,17.0,21.146,21.122,3.41526776]
[1674174058522,52.47,21.146,21.122,3.41526776]
[1674174058733,1.92,21.145,21.118,20.0]
[1674174058965,14.45414,21.144,21.109,3.41526776]
[1674174059153,5.41414,21.143,21.109,3.41526776]
[1674174059487,10.0,21.141,21.115,3.41526776]
[1674174059670,17.0,21.14,21.115,3.41526776]
[1674174059885,10.0,21.139,21.115,3.41526776]
[1674174060115,17.0,21.138,21.115,3.41526776]
[1674174060310,52.48,21.138,21.115,3.41526776]
[1674174060521,0.96,21.137,21.115,3.41526776]
[1674174060948,35.49,21.136,21.115,3.41526776]
[1674174061155,10.0,21.134,21.115,3.41526776]
[1674174061370,10.0,21.134,21.115,50.15963683]
[1674174061992,10.0,21.137,21.116,33.0795808]
[1674174062210,45.47,21.144,21.117,0.96]
[1674174062418,10.0,21.144,21.117,68.98018789]
[1674174062633,10.0,21.144,21.118,83.13976869]
[1674174062844,10.0,21.143,21.119,18.92]
[1674174063063,10.0,21.143,21.12,20.0]
[1674174063385,10.0,21.143,21.121,18.92]
[1674174063581,10.0,21.143,21.122,20.0]
[1674174063792,10.0,21.143,21.123,18.92]
[1674174063999,10.0,21.143,21.124,20.0]
[1674174064211,10.0,21.143,21.125,18.92]
[1674174064423,10.0,21.141,21.126,20.0]
[1674174064647,10.0,21.141,21.127,18.92]
[1674174064848,10.0,21.141,21.128,20.0]
[1674174065061,10.0,21.141,21.129,0.96]
[1674174065258,35.48,21.14,21.129,0.96]
[1674174065587,35.48,21.14,21.126,20.0]
[1674174065800,10.0,21.139,21.122,3.31581882]
[1674174066010,10.0,21.139,21.112,20.0]
[1674174066203,35.48,21.138,21.114,46.74436907]
[1674174066413,35.48,21.138,21.113,3.31581882]
[1674174066630,17.0,21.137,21.114,3.31581882]
[1674174066842,10.0,21.136,21.114,3.31581882]
[1674174067058,10.0,21.134,21.109,33.0795808]
[1674174067378,17.0,21.133,21.11,3.31581882]
[1674174067573,52.49,21.133,21.11,3.31581882]
[1674174067901,10.0,21.132,21.111,1.92]
[1674174068216,10.0,21.132,21.112,3.28796435]
[1674174068532,35.5,21.131,21.113,1.92]
[1674174068736,10.0,21.134,21.113,6.14942385]
[1674174068949,10.0,21.134,21.115,4.46381467]
[1674174069162,10.0,21.134,21.116,1.92]
[1674174069473,10.0,21.134,21.1,142.3]
[1674174069685,35.49,21.133,21.11,25.96971542]
[1674174069907,10.0,21.132,21.113,3.28796435]
[1674174070097,17.0,21.131,21.113,7.40982995]
[1674174070426,17.0,21.131,21.114,20.0]
[1674174070427,35.5,21.131,21.114,20.0]
[1674174070621,146.4381,21.131,21.115,6.44822058]
[1674174070844,110.9381,21.131,21.117,4.69642975]
[1674174071165,110.9381,21.131,21.118,18.92]
[1674174071666,10.0,21.13,21.118,18.92]
[1674174073693,10.0,21.13,21.116,3.28796435]
[1674174073886,45.5,21.13,21.11,4.98840527]
[1674174074096,17.0,21.129,21.11,4.98840527]
[1674174074502,35.5,21.128,21.11,4.98840527]
[1674174074738,10.0,21.127,21.11,4.98840527]
[1674174075138,35.5,21.126,21.111,0.96]
[1674174075346,35.5,21.126,21.112,0.96]
[1674174075558,10.0,21.125,21.113,0.96]
[1674174076001,10.0,21.123,21.113,0.96]
[1674174077679,10.0,21.123,21.099,6.8615745]
[1674174077867,10.0,21.121,21.099,6.8615745]
[1674174078079,10.0,21.121,21.1,3.28796435]
[1674174078288,10.0,21.119,21.1,3.28796435]
[1674174078729,10.0,21.119,21.105,7.37232821]
[1674174078941,10.0,21.123,21.106,17.96]
[1674174079154,10.0,21.128,21.107,0.96]
[1674174079343,10.0,21.125,21.108,16.00811045]
[1674174079553,10.0,21.128,21.109,25.92287838]
[1674174079763,10.0,21.128,21.111,5.70141977]
[1674174079978,10.0,21.128,21.112,17.96]
[1674174080189,10.0,21.128,21.112,18.92]
[1674174080396,45.5,21.127,21.112,18.92]
[1674174080594,45.5,21.127,21.112,23.09908103]
[1674174080809,45.5,21.127,21.089,142.3]
[1674174081019,17.0,21.126,21.099,6.32335265]
[1674174081246,17.0,21.126,21.099,9.611317]
[1674174081454,45.51,21.125,21.099,9.611317]
[1674174081666,45.51,21.125,21.1,20.0]
[1674174081855,45.51,21.125,21.101,6.29946115]
[1674174082068,45.51,21.125,21.102,37.96]
[1674174082399,45.51,21.125,21.103,20.0]
[1674174082617,10.0,21.123,21.1,20.0]
[1674174082802,17.0,21.122,21.1,20.0]
[1674174083017,10.0,21.12,21.094,23.28796435]
[1674174083235,17.0,21.119,21.097,3.28796435]
[1674174083551,10.0,21.118,21.086,26.75893788]
[1674174083759,10.0,21.118,21.089,3.28796435]
[1674174083760,17.0,21.117,21.089,3.28796435]
[1674174083979,10.0,21.116,21.09,10.0]
[1674174084504,10.0,21.114,21.091,3.28796435]
[1674174084720,10.0,21.114,21.092,1.92]
[1674174084902,152.4901,21.12,21.092,38.92]
[1674174085122,116.9801,21.12,21.093,84.25170222]
[1674174085333,116.9801,21.12,21.094,38.92]
[1674174085540,116.9801,21.12,21.095,10.0]
[1674174085759,116.9801,21.12,21.096,38.92]
[1674174085984,116.9801,21.12,21.096,88.24731742]
[1674174086200,10.0,21.118,21.097,3.28796435]
[1674174086391,10.0,21.118,21.098,1.92]
[1674174086601,10.0,21.116,21.098,38.92]
[1674174086940,10.0,21.116,21.099,3.28796435]
[1674174087132,10.0,21.114,21.1,1.92]
[1674174087339,10.0,21.114,21.1,38.92]
[1674174087556,10.0,21.114,21.101,3.28796435]
[1674174087773,10.0,21.114,21.102,1.92]
[1674174087970,10.0,21.114,21.102,21.92]
[1674174088181,10.0,21.114,21.103,3.28796435]
[1674174088389,10.0,21.114,21.104,1.92]
[1674174088616,10.0,21.116,21.104,38.92]
[1674174088813,10.0,21.118,21.105,3.28796435]
[1674174089027,10.0,21.119,21.106,1.92]
[1674174089239,10.0,21.119,21.106,18.92]
[1674174089448,10.0,21.119,21.107,3.28796435]
[1674174089676,35.51,21.124,21.108,1.92]
[1674174089868,35.51,21.122,21.108,1.92]
[1674174090077,35.51,21.122,21.109,3.28796435]
[1674174090290,10.0,21.119,21.11,1.92]
[1674174090726,10.0,21.119,21.111,3.28796435]
[1674174091041,10.0,21.119,21.112,1.92]
[1674174091566,10.0,21.119,21.113,3.28796435]
[1674174092602,10.0,21.119,21.104,20.0]
[1674174092915,10.0,21.119,21.077,144.76331856]
[1674174092916,45.52,21.119,21.109,3.28796435]
[1674174093543,17.0,21.118,21.088,21.4653]
[1674174093753,27.0,21.118,21.099,3.28796435]
[1674174093956,35.52,21.117,21.099,3.28796435]
[1674174094166,27.0,21.116,21.099,3.28796435]
[1674174094615,35.52,21.115,21.099,3.28796435]
[1674174094807,10.0,21.114,21.099,3.28796435]
[1674174095017,10.0,21.114,21.1,1.92]
[1674174095228,10.0,21.116,21.1,38.92]
[1674174095448,10.0,21.118,21.102,10.0]
[1674174095766,10.0,21.118,21.103,42.02483008]
[1674174095972,35.51,21.122,21.103,42.02483008]
[1674174096184,10.0,21.128,21.103,42.02483008]
[1674174096185,35.51,21.124,21.104,3.10483008]
[1674174096400,35.51,21.124,21.105,1.92]
[1674174096610,35.51,21.124,21.105,18.92]
[1674174096820,35.51,21.124,21.106,3.10483008]
[1674174097029,35.51,21.124,21.107,1.92]
[1674174097273,35.51,21.124,21.107,18.92]
[1674174097478,116.9801,21.12,21.108,3.10483008]
[1674174097699,116.9801,21.12,21.109,1.92]
[1674174098103,116.9801,21.12,21.11,3.10483008]
[1674174098326,116.9801,21.12,21.111,1.92]
[1674174098548,116.9801,21.12,21.111,18.92]
[1674174098737,116.9801,21.12,21.112,3.10483008]
[1674174098945,116.9801,21.12,21.113,1.92]
[1674174099377,10.0,21.119,21.112,3.10483008]
[1674174099693,10.0,21.119,21.113,0.96]
[1674174100117,10.0,21.119,21.103,65.10418315]
[1674174100428,10.0,21.119,21.104,20.10483008]
[1674174100738,10.0,21.119,21.105,3.10483008]
[1674174100954,10.0,21.119,21.106,0.96]
[1674174101477,10.0,21.119,21.107,2.93187151]
[1674174101666,10.0,21.119,21.108,0.96]
[1674174102098,10.0,21.119,21.109,2.93187151]
[1674174102407,10.0,21.119,21.11,0.96]
[1674174102619,10.0,21.119,21.111,0.96]
[1674174102846,10.0,21.119,21.111,3.89187151]
[1674174103053,10.0,21.119,21.112,0.96]
[1674174103258,10.0,21.119,21.113,0.96]
[1674174105369,10.0,21.123,21.114,2.93187151]
[1674174105568,35.5,21.129,21.115,1.92]
[1674174105795,35.5,21.129,21.115,18.92]
[1674174105978,267.8749,21.131,21.116,2.93187151]
[1674174106188,267.8749,21.131,21.117,1.92]
[1674174106715,267.8749,21.131,21.117,21.85187151]
[1674174106927,10.0,21.128,21.117,21.85187151]
[1674174109492,10.0,21.13,21.117,21.85187151]
[1674174110434,10.0,21.13,21.117,27.33799472]
[1674174110654,10.0,21.13,21.117,21.85187151]
[1674174111167,10.0,21.13,21.118,2.93187151]
[1674174111382,10.0,21.13,21.119,1.92]
[1674174111579,10.0,21.13,21.119,18.92]
[1674174111791,10.0,21.13,21.12,2.93187151]
[1674174112011,10.0,21.13,21.121,1.92]
[1674174113576,10.0,21.13,21.121,18.92]
[1674174114094,222.3749,21.131,21.121,18.92]
[1674174114309,222.3749,21.131,21.121,26.68459568]
[1674174119585,45.49,21.134,21.121,21.85187151]
[1674174119771,10.0,21.134,21.121,21.85187151]
[1674174119980,35.49,21.135,21.121,21.85187151]
[1674174120185,45.49,21.137,21.123,6.1703779]
[1674174120395,154.5082,21.138,21.124,18.92]
[1674174120610,119.0282,21.138,21.126,4.30429592]
[1674174120820,119.0282,21.138,21.127,17.96]
[1674174121024,119.0282,21.138,21.128,0.96]
[1674174121254,119.0282,21.138,21.129,0.96]
[1674174121448,119.0282,21.138,21.13,0.96]
[1674174121659,119.0282,21.138,21.131,0.96]
[1674174121877,119.0282,21.138,21.132,0.96]
[1674174122084,119.0282,21.138,21.133,0.96]
[1674174122294,119.0282,21.138,21.134,0.96]
[1674174122511,119.0282,21.138,21.135,0.96]
[1674174122810,10.0,21.137,21.135,0.96]
[1674174123024,10.0,21.137,21.131,2.93187151]
[1674174123236,10.0,21.137,21.122,20.0]
[1674174123467,10.0,21.137,21.11,172.9196]
[1674174123468,35.49,21.136,21.11,10.0]
[1674174123668,35.49,21.136,21.122,2.93187151]
[1674174124209,10.0,21.135,21.122,2.93187151]
[1674174124728,35.49,21.134,21.111,42.28355414]
[1674174124917,10.0,21.133,21.112,17.96]
[1674174125128,10.0,21.133,21.113,22.93187151]
[1674174125332,35.49,21.132,21.114,17.96]
[1674174125545,10.0,21.131,21.115,0.96]
[1674174125754,10.0,21.131,21.116,0.96]
[1674174125984,10.0,21.131,21.117,0.96]
[1674174126178,124.3274,21.131,21.118,0.96]
[1674174126385,35.5,21.13,21.117,2.93187151]
[1674174126594,10.0,21.129,21.118,2.93187151]
[1674174126807,10.0,21.129,21.114,20.0]
[1674174127019,10.0,21.127,21.114,20.0]
[1674174127232,10.0,21.127,21.113,2.93187151]
[1674174127443,35.5,21.126,21.113,2.93187151]
[1674174127648,10.0,21.125,21.113,2.93187151]
[1674174128068,10.0,21.125,21.114,0.96]
[1674174128289,10.0,21.125,21.115,0.96]
[1674174128498,10.0,21.125,21.113,2.93187151]
[1674174128499,10.0,21.125,21.114,0.96]
[1674174128713,10.0,21.123,21.114,0.96]
[1674174128932,10.0,21.123,21.113,2.93187151]
[1674174129540,10.0,21.123,21.114,0.96]
[1674174129987,35.51,21.124,21.114,0.96]
[1674174130181,10.0,21.127,21.115,3.89187151]
[1674174130400,10.0,21.127,21.116,0.96]
[1674174130716,10.0,21.127,21.116,40.89187151]
[1674174130943,10.0,21.127,21.117,3.89187151]
[1674174131138,10.0,21.127,21.118,0.96]
[1674174131345,10.0,21.127,21.118,3.89187151]
[1674174131560,10.0,21.127,21.119,3.89187151]
[1674174131749,10.0,21.127,21.12,0.96]
[1674174131962,10.0,21.127,21.121,0.96]
[1674174132296,10.0,21.127,21.122,0.96]
[1674174132704,10.0,21.127,21.123,0.96]
[1674174133023,10.0,21.127,21.124,0.96]
[1674174134917,10.0,21.127,21.125,0.96]
[1674174135129,10.0,21.127,21.126,0.96]
[1674174135556,10.0,21.127,21.126,1.92]
[1674174136598,10.0,21.127,21.126,0.96]
[1674174136808,10.0,21.127,21.12,2.93187151]
[1674174137031,10.0,21.127,21.121,0.96]
[1674174137462,10.0,21.127,21.121,3.89187151]
[1674174138307,10.0,21.127,21.122,0.96]
[1674174139033,111.8872,21.129,21.122,17.96]
[1674174139227,35.48,21.138,21.123,20.96]
[1674174139437,110.3275,21.138,21.124,5.12693526]
[1674174139667,110.3275,21.138,21.126,5.30180805]
[1674174139872,110.3275,21.138,21.127,17.96]
[1674174140068,110.3275,21.138,21.127,20.89187151]
[1674174140273,10.0,21.141,21.128,6.52741996]
[1674174140497,10.0,21.141,21.129,17.96]
[1674174140714,10.0,21.141,21.13,28.30088947]
[1674174140931,10.0,21.148,21.131,24.81636123]
[1674174141119,10.0,21.148,21.132,0.96]
[1674174141330,35.47,21.147,21.133,4.28787133]
[1674174141641,10.0,21.148,21.134,18.92]
[1674174141862,10.0,21.148,21.136,6.88167677]
[1674174142084,10.0,21.148,21.137,18.92]
[1674174142611,10.0,21.149,21.137,18.92]
[1674174143007,110.3275,21.15,21.137,18.92]
[1674174143222,110.3275,21.15,21.137,58.09049788]
[1674174143433,110.3275,21.15,21.138,5.92135221]
[1674174143755,35.44,21.163,21.14,5.46171822]
[1674174144086,111.0434,21.162,21.142,7.32055844]
[1674174144291,111.0434,21.162,21.144,6.24637991]
[1674174144501,111.0434,21.162,21.145,38.92]
[1674174144714,146.4834,21.162,21.146,26.40890959]
[1674174144915,146.4834,21.162,21.147,18.92]
[1674174145325,10.0,21.161,21.147,18.92]
[1674174145537,10.0,21.161,21.148,17.0]
[1674174145742,10.0,21.161,21.149,1.92]
[1674174145979,10.0,21.161,21.149,0.96]
[1674174146196,163.152,21.174,21.15,6.86719873]
[1674174146405,163.152,21.174,21.151,17.96]
[1674174146723,10.0,21.173,21.152,20.96]
[1674174146918,10.0,21.173,21.153,22.68511424]
[1674174147243,10.0,21.171,21.154,20.96]
[1674174147454,10.0,21.171,21.155,22.56849182]